bitfinex-derivatives/quotes_SOLF0:USTF0_20250113
["timestamp","ask_amount","ask_price","bid_price","bid_amount"]
[1736785373928,3.6962,177.96,177.74,96.44]
[1736785374130,38.92769797,177.89,177.75,38.92769797]
[1736785374333,2.8126,177.84,177.76,7.2]
[1736785374533,1.7715,177.88,177.76,7.2]
[1736785374733,1.7715,177.88,177.78,38.92769797]
[1736785374938,1.7715,177.88,177.79,7.2]
[1736785375437,38.92769797,177.95,177.81,2.8129]
[1736785375742,1.9412,177.94,177.82,38.92769797]
[1736785376232,1.9784,177.96,177.85,38.92769797]
[1736785376634,1.9412,177.97,177.88,38.92769797]
[1736785376835,3.7334,178.01,177.88,38.92769797]
[1736785377041,1.9412,178.01,177.91,38.92769797]
[1736785378044,1.9603,178.06,177.94,38.92769797]
[1736785378234,1.9603,178.06,177.95,7.26]
[1736785379039,1.8858,178.07,177.97,38.92769797]
[1736785379345,1.9603,178.1,178.0,38.92769797]
[1736785379535,1.9603,178.1,178.03,2.8094]
[1736785379732,3.7575,178.14,178.03,7.26]
[1736785380240,1.8858,178.14,178.04,96.42]
[1736785380442,189.77479043,178.23,178.06,38.92769797]
[1736785380641,1.8577,178.19,178.06,38.92769797]
[1736785380834,2.8072,178.18,178.08,2.8086]
[1736785381242,1.8577,178.19,178.06,38.92769797]
[1736785381537,1.9483,178.22,178.12,38.92769797]
[1736785381841,150.84709246,178.28,178.18,38.92769797]
[1736785382236,150.84709246,178.28,178.15,38.92769797]
[1736785382438,2.8068,178.2,178.1,2.8082]
[1736785382642,38.92769797,178.22,178.11,7.26]
[1736785382939,2.8073,178.17,178.11,7.26]
[1736785383242,1.9324,178.19,178.11,7.26]
[1736785383838,1.8896,178.2,178.11,7.26]
[1736785384042,1.8896,178.2,178.12,2.808]
[1736785384245,1.8896,178.2,178.11,7.26]
[1736785384844,4.6964,178.2,178.11,10.0682]
[1736785385142,1.8896,178.2,178.11,7.26]
[1736785385545,2.8072,178.17,178.11,7.26]
[1736785386041,1.8896,178.2,178.11,7.26]
[1736785386835,40.81629797,178.28,178.12,38.92769797]
[1736785387037,3.9407,178.27,178.15,38.92769797]
[1736785387942,38.92769797,178.25,178.13,7.26]
[1736785388143,38.92769797,178.22,178.07,103.68]
[1736785388448,2.8079,178.14,178.07,96.42]
[1736785388646,38.92769797,178.19,178.07,96.42]
[1736785388846,1.8735,178.18,178.07,96.42]
[1736785389046,38.92769797,178.16,178.07,96.42]
[1736785389249,38.92769797,178.11,177.97,8.355]
[1736785389447,2.809,178.06,177.97,8.355]
[1736785389745,38.92769797,178.11,177.97,8.355]
[1736785389952,38.92769797,178.08,177.97,7.32]
[1736785390152,2.8093,178.04,177.97,7.32]
[1736785390352,5.9255,178.07,177.97,7.32]
[1736785390754,2.8093,178.04,177.97,7.32]
[1736785391048,5.9255,178.07,177.97,7.32]
[1736785391247,2.8093,178.04,177.97,7.32]
[1736785391851,5.9255,178.07,177.97,7.32]
[1736785392048,2.8091,178.05,177.97,7.32]
[1736785392253,5.9255,178.07,177.97,7.32]
[1736785392450,2.8092,178.05,177.97,7.32]
[1736785392652,5.9255,178.07,177.94,135.30769797]
[1736785392847,5.9255,178.07,177.95,7.32]
[1736785393157,2.8099,178.0,177.95,7.32]
[1736785393354,2.8099,178.0,177.94,96.38]
[1736785394563,2.8097,178.02,177.94,96.38]
[1736785394964,38.92769797,178.05,177.94,96.38]
[1736785395163,2.8098,178.01,177.94,96.38]
[1736785396264,38.92769797,178.02,177.94,96.38]
[1736785397168,38.92769797,177.96,177.81,103.68]
[1736785397469,5.988,177.95,177.81,7.28]
[1736785397656,38.92769797,177.93,177.78,97.4393]
[1736785397858,38.92769797,177.9,177.78,103.7]
[1736785398364,2.8126,177.84,177.78,96.4]
[1736785398559,38.92769797,177.87,177.78,96.4]
[1736785398967,38.92769797,177.93,177.78,96.4]
[1736785399167,38.92769797,177.93,177.78,135.32769797]
[1736785400262,2.8115,177.9,177.81,2.8129]
[1736785400467,38.92769797,177.93,177.82,7.3]
[1736785400666,2.8113,177.92,177.83,2.8126]
[1736785400864,5.988,177.95,177.82,7.3]
[1736785401065,38.92769797,177.93,177.81,7.3]
[1736785401761,3.9866,177.95,177.84,38.92769797]
[1736785401961,2.8102,177.99,177.87,38.92769797]
[1736785402161,38.92769797,178.0,177.87,38.92769797]
[1736785402363,2.8101,177.99,177.89,2.8116]
[1736785402569,38.92769797,178.03,177.9,46.24769797]
[1736785402768,5.8397,178.04,177.9,46.24769797]
[1736785402960,5.8397,178.04,177.9,7.32]
[1736785402961,2.8104,177.97,177.9,7.32]
[1736785403369,38.92769797,178.03,177.9,7.32]
[1736785403568,2.8105,177.97,177.9,7.32]
[1736785404870,38.92769797,178.03,177.9,46.24769797]
[1736785405068,38.92769797,178.03,177.9,7.32]
[1736785405364,38.92769797,178.0,177.9,7.32]
[1736785405574,38.92769797,178.0,177.84,38.92769797]
[1736785405766,38.92769797,178.0,177.85,7.28]
[1736785406165,38.92769797,178.0,177.88,2.8118]
[1736785406369,2.8102,177.98,177.87,38.92769797]
[1736785406872,38.92769797,178.03,177.9,38.92769797]
[1736785407269,38.92769797,178.03,177.89,2.8115]
[1736785407471,2.8101,177.99,177.88,7.28]
[1736785407773,38.92769797,178.03,177.88,7.28]
[1736785407967,38.92769797,178.0,177.88,7.28]
[1736785408362,38.92769797,178.0,177.84,38.92769797]
[1736785408567,2.8112,177.93,177.85,7.26]
[1736785409370,2.8112,177.93,177.84,38.92769797]
[1736785409570,2.8115,177.91,177.83,7.24]
[1736785409873,38.92769797,177.97,177.83,7.24]
[1736785410069,2.8119,177.88,177.83,7.24]
[1736785410473,38.92769797,177.97,177.83,7.24]
[1736785410667,198.26,178.03,177.86,2.8121]
[1736785410668,2.8109,177.94,177.86,2.8121]
[1736785411067,2.8109,177.94,177.84,38.92769797]
[1736785411264,38.92769797,177.97,177.83,7.24]
[1736785412077,38.92769797,178.02,177.84,38.92769797]
[1736785412370,38.92769797,178.02,177.87,38.92769797]
[1736785412874,2.8106,177.96,177.88,2.8118]
[1736785413074,38.92769797,178.02,177.84,38.92769797]
[1736785413270,38.92769797,178.02,177.85,7.22]
[1736785413471,38.92769797,178.02,177.87,38.92769797]
[1736785413672,5.8397,178.04,177.9,38.92769797]
[1736785413970,5.8397,178.04,177.93,38.92769797]
[1736785414172,1.9315,178.04,177.96,38.92769797]
[1736785414476,1.8925,178.13,177.99,38.92769797]
[1736785414975,38.92769797,178.08,177.94,7.22]
[1736785415366,38.92769797,178.05,177.94,7.22]
[1736785415568,38.92769797,178.05,177.92,38.92769797]
[1736785415569,1.9281,178.04,177.92,38.92769797]
[1736785415774,38.92769797,177.99,177.83,46.26769797]
[1736785415972,38.92769797,177.99,177.85,2.8121]
[1736785416369,38.92769797,178.02,177.86,38.92769797]
[1736785416577,3.8779,178.03,177.89,38.92769797]
[1736785417277,38.92769797,178.02,177.85,1.0401]
[1736785417781,3.8779,178.03,177.93,38.92769797]
[1736785417982,1.9281,178.04,177.96,38.92769797]
[1736785418282,38.92769797,178.11,177.97,7.34]
[1736785418484,38.92769797,178.08,177.97,7.34]
[1736785418678,2.8102,177.98,177.97,7.34]
[1736785418978,38.92769797,178.02,177.92,96.46]
[1736785419177,1.8542,178.01,177.92,96.46]
[1736785420271,38.92769797,177.99,177.92,96.46]
[1736785420582,1.9705,177.98,177.85,1.0401]
[1736785420775,1.9705,177.98,177.86,7.36]
[1736785421576,1.8542,178.01,177.87,38.92769797]
[1736785421774,1.8542,178.01,177.9,38.92769797]
[1736785421983,2.8101,177.99,177.92,2.8112]
[1736785422277,1.8542,178.01,177.9,38.92769797]
[1736785422478,2.8099,178.01,177.94,2.8109]
[1736785422674,1.9412,178.04,177.94,7.34]
[1736785423075,2.8098,178.01,177.94,7.34]
[1736785423272,38.92769797,178.02,177.94,7.34]
[1736785423472,2.0368,178.01,177.94,7.34]
[1736785423888,1.9412,178.04,177.94,7.34]
[1736785424388,2.8099,178.01,177.94,7.34]
[1736785424575,1.9412,178.04,177.94,7.34]
[1736785424882,2.8096,178.02,177.95,2.8106]
[1736785425082,1.9412,178.04,177.94,7.34]
[1736785425278,2.8099,178.0,177.94,7.34]
[1736785425486,1.9412,178.04,177.94,7.34]
[1736785425985,2.8099,178.01,177.94,10.1509]
[1736785426381,1.9412,178.04,177.94,7.34]
[1736785426686,38.92769797,178.03,177.94,7.34]
[1736785426980,2.8104,177.98,177.94,7.34]
[1736785427483,38.92769797,178.03,177.94,7.34]
[1736785427684,2.8104,177.97,177.94,7.34]
[1736785428082,38.92769797,178.03,177.94,7.34]
[1736785428277,2.8107,177.95,177.94,7.34]
[1736785428479,38.92769797,178.0,177.85,192.0401]
[1736785428686,1.961,177.99,177.86,7.42]
[1736785429187,38.92769797,177.97,177.84,7.42]
[1736785429482,2.8117,177.89,177.82,45.07557654]
[1736785429684,2.8117,177.89,177.83,7.42]
[1736785429979,38.92769797,177.97,177.83,7.42]
[1736785430583,2.8122,177.86,177.83,7.42]
[1736785430789,38.92769797,177.94,177.83,7.42]
[1736785431079,2.8118,177.89,177.83,7.42]
[1736785431586,1.8955,177.93,177.83,7.42]
[1736785431788,2.8119,177.88,177.83,7.42]
[1736785432187,2.8117,177.89,177.83,7.42]
[1736785432381,1.9531,177.98,177.84,38.92769797]
[1736785432587,3.8391,177.98,177.84,38.92769797]
[1736785432990,2.8109,177.94,177.86,2.812]
[1736785433287,3.8391,177.98,177.84,38.92769797]
[1736785433685,38.92769797,177.97,177.84,38.92769797]
[1736785434089,2.811,177.94,177.84,38.92769797]
[1736785434278,38.92769797,177.94,177.81,326.36769797]
[1736785434484,38.92769797,177.94,177.81,96.44]
[1736785434885,2.8123,177.85,177.81,96.44]
[1736785435286,38.92769797,177.94,177.81,96.44]
[1736785435485,2.8128,177.82,177.81,96.44]
[1736785437185,2.8126,177.84,177.81,96.44]
[1736785437384,1.8684,177.89,177.81,135.36769797]
[1736785438392,2.8119,177.88,177.81,138.18049797]
[1736785438590,38.92769797,177.94,177.81,135.36769797]
[1736785438788,1.9812,177.94,177.84,38.92769797]
[1736785438988,2.8112,177.92,177.85,10.1723]
[1736785439191,1.9812,177.94,177.85,7.36]
[1736785440393,10.26786091,177.99,177.87,38.92769797]
[1736785440583,4.0345,177.99,177.87,38.92769797]
[1736785440782,4.0345,177.99,177.87,41.73959797]
[1736785441186,2.024,178.02,177.9,38.92769797]
[1736785441392,2.024,178.02,177.93,38.92769797]
[1736785441588,1.9304,178.03,177.94,7.32]
[1736785441795,2.0533,178.06,177.96,38.92769797]
[1736785442091,40.98099797,178.06,177.94,7.32]
[1736785442493,2.8095,178.03,177.94,7.32]
[1736785442789,8.10795344,178.05,177.94,7.32]
[1736785443287,38.92769797,178.0,177.88,7.32]
[1736785443492,3.8563,177.99,177.88,7.32]
[1736785443687,2.811,177.93,177.88,7.32]
[1736785443888,3.8563,177.99,177.88,7.32]
[1736785444391,1.9926,177.98,177.88,7.32]
[1736785444691,2.8104,177.98,177.88,7.32]
[1736785445085,3.8563,177.99,177.88,7.32]
[1736785445794,5.7177,177.99,177.88,7.32]
[1736785445991,38.92769797,177.97,177.88,7.32]
[1736785446785,5.7177,177.99,177.88,7.32]
[1736785447689,3.8563,177.99,177.88,7.32]
[1736785447890,1.9304,177.99,177.9,38.92769797]
[1736785448291,4.7587,178.04,177.97,2.8104]
[1736785448486,1.9494,178.04,177.97,7.3]
[1736785448892,2.8102,177.99,177.97,7.3]
[1736785449094,1.9494,178.04,177.97,7.3]
[1736785449493,38.92769797,178.02,177.91,7.3]
[1736785449794,1.9494,178.04,177.9,46.22769797]
[1736785449988,2.0285,178.06,177.96,38.92769797]
[1736785450190,1.9546,178.07,177.99,38.92769797]
[1736785450390,11.98147206,178.11,177.99,38.92769797]
[1736785450694,8.01637206,178.11,178.02,38.92769797]
[1736785450890,10.00667206,178.11,177.99,38.92769797]
[1736785451090,1.9903,178.11,177.99,38.92769797]
[1736785452187,2.8089,178.07,177.99,38.92769797]
[1736785452390,1.9903,178.11,178.02,38.92769797]
[1736785453394,4.7986,178.11,178.02,38.92769797]
[1736785453588,1.9903,178.11,178.02,38.92769797]
[1736785453987,2.8088,178.08,178.02,38.92769797]
[1736785454190,1.9903,178.11,178.02,38.92769797]
[1736785455089,1.9903,178.11,177.99,38.92769797]
[1736785455595,1.9903,178.11,177.97,8.3662]
[1736785455596,38.92769797,178.09,177.97,7.28]
[1736785455798,38.92769797,178.06,177.97,7.28]
[1736785455993,40.91799797,178.11,177.97,7.28]
[1736785457199,2.8098,178.01,177.97,7.28]
[1736785457499,40.91799797,178.11,177.97,7.28]
[1736785458198,38.92769797,178.04,177.96,96.46]
[1736785458396,2.0228,178.03,177.96,96.46]
[1736785458997,1.9274,178.02,177.96,96.46]
[1736785459597,2.81,178.0,177.96,96.46]
[1736785460094,1.9274,178.02,177.96,96.46]
[1736785460299,2.8098,178.01,177.96,96.46]
[1736785460697,3.939,178.08,177.96,135.38769797]
[1736785461000,1.9016,178.07,177.96,96.46]
[1736785461201,2.8101,177.99,177.96,96.46]
[1736785461701,2.8104,177.97,177.96,96.46]
[1736785463399,38.92769797,178.04,177.96,96.46]
[1736785463702,40.82929797,178.07,177.96,96.46]
[1736785463904,2.8102,177.99,177.96,96.46]
[1736785464394,40.82929797,178.07,177.96,96.46]
[1736785464596,1.9016,178.07,177.96,96.46]
[1736785464904,1.9016,178.07,177.96,135.38769797]
[1736785465108,2.809,178.06,177.97,1.0493]
[1736785465299,1.9016,178.07,177.96,96.46]
[1736785465604,2.8097,178.02,177.96,96.46]
[1736785465902,1.9016,178.07,177.96,96.46]
[1736785466196,1.9016,178.07,177.96,135.38769797]
[1736785466704,2.8095,178.03,177.97,1.0493]
[1736785467002,1.9016,178.07,177.96,135.38769797]
[1736785467501,3.9661,178.14,177.99,38.92769797]
[1736785467693,2.8088,178.08,178.01,2.8097]
[1736785467895,1.8781,178.13,178.02,7.22]
[1736785468400,38.92769797,178.12,178.02,7.22]
[1736785468600,38.92769797,178.12,177.98,7.24]
[1736785468795,2.8091,178.05,177.98,7.24]
[1736785468999,38.92769797,178.11,177.98,7.24]
[1736785469401,2.8095,178.03,177.98,7.24]
[1736785469697,38.92769797,178.11,177.98,7.24]
[1736785469902,2.8093,178.04,177.98,7.24]
[1736785470098,38.92769797,178.06,177.98,7.24]
[1736785470704,2.8104,177.97,177.96,96.46]
[1736785471003,3.958,178.05,177.93,7.26]
[1736785471205,1.9256,178.04,177.93,7.26]
[1736785471595,1.9256,178.04,177.9,135.34769797]
[1736785471596,38.92769797,178.03,177.9,96.42]
[1736785471800,38.92769797,178.0,177.9,96.42]
[1736785472405,38.92769797,177.96,177.83,1.0471]
[1736785472607,38.92769797,177.96,177.84,7.26]
[1736785472804,38.92769797,177.99,177.84,46.18769797]
[1736785473005,38.92769797,178.02,177.87,38.92769797]
[1736785473307,38.92769797,178.02,177.88,7.24]
[1736785473504,38.92769797,177.99,177.88,7.24]
[1736785473697,38.92769797,177.96,177.85,7.24]
[1736785473896,2.8118,177.88,177.85,7.24]
[1736785474102,5.828,177.95,177.85,7.24]
[1736785475400,1.9281,178.01,177.87,38.92769797]
[1736785475707,1.9651,178.0,177.87,38.92769797]
[1736785476005,1.9651,178.0,177.88,2.8118]
[1736785477301,2.8107,177.96,177.87,135.36769797]
[1736785477506,1.9281,178.01,177.9,38.92769797]
[1736785477705,1.9335,178.03,177.93,38.92769797]
[1736785478007,1.9335,178.03,177.94,7.2]
[1736785478405,1.9505,178.09,177.96,38.92769797]
[1736785478603,2.8086,178.09,178.0,2.8098]
[1736785478804,1.9335,178.11,177.99,38.92769797]
[1736785480207,40.86119797,178.11,177.96,38.92769797]
[1736785481107,40.86119797,178.11,177.94,7.2]
[1736785481409,38.92769797,178.02,177.91,11.05525]
[1736785481709,1.9024,178.01,177.91,11.05525]
[1736785482210,38.92769797,177.96,177.91,3.87525]
[1736785482804,2.8112,177.92,177.91,3.87525]
[1736785483202,38.92769797,177.96,177.91,3.87525]
[1736785483613,38.92769797,177.99,177.91,3.87525]
[1736785484201,3.9863,178.0,177.91,3.87525]
[1736785484406,2.8104,177.98,177.91,3.87525]
[1736785484613,3.9863,178.0,177.91,3.87525]
[1736785484614,2.0177,178.0,177.91,3.87525]
[1736785485110,1.9024,178.01,177.92,2.8112]
[1736785485510,1.9024,178.01,177.91,3.87525]
[1736785485806,1.9024,178.01,177.92,7.14]
[1736785486809,38.92769797,177.96,177.91,3.87525]
[1736785487512,2.8112,177.92,177.91,3.87525]
[1736785487909,3.7903,177.95,177.91,3.87525]
[1736785487910,1.8625,177.95,177.91,3.87525]
[1736785488106,38.92769797,177.99,177.91,3.87525]
[1736785488311,1.9278,178.0,177.91,3.87525]
[1736785489714,1.9024,178.01,177.91,3.87525]
[1736785489907,1.9024,178.01,177.93,38.92769797]
[1736785490108,1.9024,178.01,177.94,7.12]
[1736785490305,1.9024,178.01,177.91,3.87525]
[1736785490612,1.9024,178.01,177.92,7.12]
[1736785491816,2.8107,177.96,177.92,7.12]
[1736785492619,1.9024,178.01,177.92,7.12]
[1736785492915,152.77489246,178.07,177.95,2.8106]
[1736785493116,1.9436,178.06,177.93,38.92769797]
[1736785493414,1.9436,178.06,177.93,41.73869797]
[1736785493915,38.92769797,178.01,177.91,3.87525]
[1736785495511,2.8111,177.93,177.91,3.87525]
[1736785495918,2.8107,177.96,177.91,3.87525]
[1736785496213,38.92769797,178.04,177.91,3.87525]
[1736785496613,2.8105,177.97,177.91,3.87525]
[1736785497310,38.92769797,178.01,177.91,3.87525]
[1736785497512,38.92769797,177.98,177.91,3.87525]
[1736785497713,3.9498,177.97,177.91,3.87525]
[1736785497913,2.8112,177.92,177.91,3.87525]
[1736785498819,2.8112,177.93,177.91,3.87525]
[1736785499606,1.9212,177.96,177.91,3.87525]
[1736785500012,2.8108,177.95,177.91,3.87525]
[1736785500208,1.9977,178.03,177.91,3.87525]
[1736785500516,4.0035,178.03,177.91,3.87525]
[1736785500821,4.0035,178.03,177.91,6.68655]
[1736785501016,4.0035,178.03,177.91,3.87525]
[1736785501707,2.8107,177.95,177.91,3.87525]
[1736785501913,38.92769797,177.99,177.91,3.87525]
[1736785502525,2.8112,177.92,177.91,3.87525]
[1736785503517,38.92769797,177.99,177.91,3.87525]
[1736785503721,38.92769797,178.02,177.91,3.87525]
[1736785504714,2.8105,177.97,177.91,3.87525]
[1736785504914,4.0035,178.03,177.91,3.87525]
[1736785505109,4.0035,178.03,177.93,38.92769797]
[1736785505324,4.0035,178.03,177.95,2.8107]
[1736785505720,2.0058,178.03,177.96,38.92769797]
[1736785505921,2.0058,178.03,177.94,7.06]
[1736785505922,150.84709246,178.09,177.99,38.92769797]
[1736785506215,150.84709246,178.09,178.02,38.92769797]
[1736785506410,150.84709246,178.09,178.05,38.92769797]
[1736785506616,152.82789246,178.17,178.08,38.92769797]
[1736785506817,2.8074,178.16,178.08,38.92769797]
[1736785507119,152.82789246,178.17,178.08,38.92769797]
[1736785507320,150.84709246,178.17,178.08,38.92769797]
[1736785507521,152.82789246,178.17,178.08,38.92769797]
[1736785507723,152.82789246,178.17,178.06,7.06]
[1736785508019,2.8079,178.13,178.06,7.06]
[1736785508219,1.9808,178.17,178.06,7.06]
[1736785508621,2.8084,178.1,178.06,7.06]
[1736785509015,2.8086,178.09,178.06,7.06]
[1736785509216,1.9808,178.17,178.06,7.06]
[1736785509415,1.9808,178.17,178.08,38.92769797]
[1736785510723,2.0086,178.2,178.08,38.92769797]
[1736785510926,2.8073,178.17,178.08,38.92769797]
[1736785511122,1.888,178.23,178.11,38.92769797]
[1736785511319,1.888,178.23,178.14,38.92769797]
[1736785511616,150.84709246,178.35,178.2,77.85539594]
[1736785511821,150.84709246,178.35,178.27,38.92769797]
[1736785512427,2.8051,178.31,178.27,38.92769797]
[1736785514322,1.888,178.37,178.21,103.46]
[1736785514523,1.888,178.37,178.3,38.92769797]
[1736785514724,1.888,178.37,178.31,7.02]
[1736785515027,1.888,178.37,178.31,7.0]
[1736785515224,40.81569797,178.37,178.23,38.92769797]
[1736785515427,40.81569797,178.37,178.23,45.96769797]
[1736785515623,38.92769797,178.34,178.17,38.92769797]
[1736785515828,1.888,178.37,178.17,38.92769797]
[1736785515829,38.92769797,178.31,178.17,38.92769797]
[1736785516421,1.9337,178.33,178.17,38.92769797]
[1736785516826,1.9337,178.33,178.16,7.04]
[1736785516827,38.92769797,178.31,178.16,7.04]
[1736785517535,1.9337,178.33,178.17,38.92769797]
[1736785517827,1.9337,178.33,178.18,7.04]
[1736785518130,2.8063,178.23,178.18,7.04]
[1736785519131,2.8061,178.25,178.2,38.92769797]
[1736785519322,1.9337,178.33,178.23,38.92769797]
[1736785519530,1.9337,178.33,178.26,38.92769797]
[1736785519727,1.888,178.37,178.27,7.04]
[1736785520428,2.8049,178.33,178.27,7.04]
[1736785520829,1.888,178.37,178.29,38.92769797]
[1736785520830,2.8045,178.35,178.29,38.92769797]
[1736785521035,1.888,178.37,178.32,38.92769797]
[1736785521431,4.6921,178.37,178.32,38.92769797]
[1736785521733,1.888,178.37,178.32,38.92769797]
[1736785521928,2.8043,178.36,178.32,38.92769797]
[1736785522231,1.888,178.37,178.32,38.92769797]
[1736785522823,2.8046,178.34,178.32,38.92769797]
[1736785523026,1.888,178.37,178.29,38.92769797]
[1736785523223,1.888,178.37,178.3,7.02]
[1736785523427,2.8053,178.31,178.3,7.02]
[1736785523622,1.888,178.37,178.27,96.32]
[1736785523833,4.0115,178.36,178.27,103.34]
[1736785524027,2.805,178.34,178.27,103.34]
[1736785524230,1.888,178.37,178.29,38.92769797]
[1736785524928,1.888,178.37,178.27,103.34]
[1736785525137,4.0115,178.36,178.27,103.34]
[1736785526242,1.888,178.37,178.29,38.92769797]
[1736785527843,1.888,178.37,178.32,38.92769797]
[1736785528036,2.8045,178.36,178.32,38.92769797]
[1736785528742,1.888,178.37,178.29,38.92769797]
[1736785528944,1.888,178.37,178.3,7.0]
[1736785529139,2.8047,178.35,178.3,7.0]
[1736785529444,1.888,178.37,178.3,7.0]
[1736785530846,2.8048,178.35,178.31,7.0]
[1736785531041,1.888,178.37,178.31,7.0]
[1736785531237,1.888,178.37,178.32,38.92769797]
[1736785531541,1.9411,178.41,178.32,38.92769797]
[1736785531945,2.8043,178.38,178.32,38.92769797]
[1736785532145,1.9165,178.45,178.35,38.92769797]
[1736785533344,2.8041,178.39,178.35,38.92769797]
[1736785533741,1.9165,178.45,178.38,38.92769797]
[1736785534048,1.9737,178.55,178.41,38.92769797]
[1736785534248,1.9216,178.52,178.41,38.92769797]
[1736785534445,2.8025,178.49,178.41,38.92769797]
[1736785534748,1.9216,178.52,178.41,38.92769797]
[1736785535144,2.8031,178.46,178.41,38.92769797]
[1736785535644,1.9216,178.52,178.41,38.92769797]
[1736785535839,1.9216,178.52,178.39,6.98]
[1736785536150,2.8041,178.4,178.35,38.92769797]
[1736785536345,2.8041,178.4,178.36,6.96]
[1736785536647,2.8044,178.38,178.36,6.96]
[1736785536849,38.92769797,178.5,178.35,38.92769797]
[1736785537053,38.92769797,178.5,178.36,6.96]
[1736785537649,38.92769797,178.5,178.35,38.92769797]
[1736785537848,38.92769797,178.5,178.36,6.96]
[1736785538745,1.9216,178.52,178.41,38.92769797]
[1736785538945,2.8031,178.45,178.41,38.92769797]
[1736785540839,2.8027,178.48,178.44,38.92769797]
[1736785541049,1.9216,178.52,178.45,6.96]
[1736785541252,2.8027,178.48,178.45,6.96]
[1736785541543,3.8696,178.55,178.47,38.92769797]
[1736785541750,1.8959,178.55,178.47,38.92769797]
[1736785542142,1.8959,178.55,178.5,38.92769797]
[1736785542349,3.9271,178.61,178.5,38.92769797]
[1736785542548,1.8991,178.61,178.53,38.92769797]
[1736785542743,1.936,178.64,178.54,6.96]
[1736785542950,2.8011,178.59,178.54,6.96]
[1736785543155,1.936,178.64,178.54,6.96]
[1736785544149,1.936,178.64,178.47,38.92769797]
[1736785544354,38.92769797,178.62,178.48,6.96]
[1736785544651,2.8017,178.54,178.5,38.92769797]
[1736785544844,1.936,178.64,178.5,38.92769797]
[1736785545777,2.8015,178.56,178.5,41.72999797]
[1736785546180,2.8012,178.58,178.53,38.92769797]
[1736785546386,1.936,178.64,178.53,38.92769797]
[1736785547980,1.936,178.64,178.56,38.92769797]
[1736785548171,1.936,178.64,178.56,45.86769797]
[1736785548369,1.8667,178.71,178.59,38.92769797]
[1736785548577,1.8531,178.7,178.62,38.92769797]
[1736785549168,38.92769797,178.77,178.62,38.92769797]
[1736785549376,3.7198,178.76,178.65,38.92769797]
[1736785549572,1.8531,178.76,178.68,38.92769797]
[1736785549783,2.7982,178.77,178.71,38.92769797]
[1736785550173,2.7982,178.77,178.74,38.92769797]
[1736785550368,5.6862,178.86,178.74,45.86769797]
[1736785551068,5.6862,178.86,178.74,6.94]
[1736785551456,38.92769797,178.84,178.74,6.94]
[1736785551951,2.7984,178.75,178.74,6.94]
[1736785552152,38.92769797,178.84,178.69,6.94]
[1736785552347,38.92769797,178.81,178.69,6.94]
[1736785552553,2.7992,178.7,178.69,6.94]
[1736785553151,2.0075,178.77,178.69,6.94]
[1736785553455,1.9076,178.76,178.69,6.94]
[1736785553657,3.9058,178.76,178.69,6.94]
[1736785553852,2.7986,178.74,178.69,6.94]
[1736785554057,3.9058,178.76,178.69,6.94]
[1736785554248,3.9058,178.76,178.62,45.86769797]
[1736785554457,2.7995,178.68,178.62,45.86769797]
[1736785554956,3.9058,178.76,178.62,48.66799797]
[1736785554957,2.7993,178.7,178.62,48.66799797]
[1736785555156,3.9058,178.76,178.65,38.92769797]
[1736785555553,3.9058,178.76,178.68,38.92769797]
[1736785555755,1.9076,178.76,178.68,38.92769797]
[1736785556150,3.911,178.82,178.65,38.92769797]
[1736785556353,5.8534,178.82,178.71,38.92769797]
[1736785556559,5.8534,178.82,178.74,38.92769797]
[1736785556560,3.9406,178.82,178.74,38.92769797]
[1736785556957,2.7978,178.79,178.74,38.92769797]